bitfinex-derivatives/quotes_BNBF0:USTF0_20241230
["timestamp","ask_amount","ask_price","bid_price","bid_amount"]
[1735597521611,0.26230529,702.16,700.68,0.285437]
[1735597521819,0.26230529,702.15,700.68,0.285437]
[1735597522017,0.54714876,702.14,700.68,0.285437]
[1735597522214,0.26230529,702.13,700.68,0.285437]
[1735597523516,0.28485159,702.12,700.68,0.285437]
[1735597523818,0.26231797,702.11,700.68,0.285437]
[1735597524114,0.2848597,702.1,700.68,0.285437]
[1735597524319,0.26231797,702.09,700.68,0.285437]
[1735597524621,0.28486782,702.08,700.68,0.285437]
[1735597524819,0.26231797,702.07,700.68,0.285437]
[1735597526422,0.26232663,702.06,700.68,0.285437]
[1735597526623,0.26232663,702.05,700.68,0.285437]
[1735597526820,0.26232663,702.04,700.68,0.285437]
[1735597527021,1.48890806,702.06,700.68,0.285437]
[1735597527224,0.26232992,702.05,700.68,0.285437]
[1735597529228,0.26235998,702.04,700.68,0.285437]
[1735597529421,0.26235998,702.03,700.68,0.285437]
[1735597529619,0.26235998,702.02,700.68,0.285437]
[1735597529821,0.26235998,702.01,700.68,0.285437]
[1735597530122,0.26235998,702.0,700.68,0.285437]
[1735597530323,0.26235998,701.99,700.68,0.285437]
[1735597530520,1.48890806,702.06,700.68,0.285437]
[1735597530521,0.26235998,701.98,700.68,0.285437]
[1735597530723,0.26235998,701.97,700.68,0.285437]
[1735597530923,0.26235998,701.96,700.68,0.285437]
[1735597531225,0.26235998,701.95,700.68,0.285437]
[1735597531425,0.26235998,701.94,700.68,0.285437]
[1735597531621,0.26235998,701.93,700.68,0.285437]
[1735597531825,1.48890806,702.06,700.68,0.285437]
[1735597531826,0.26235998,701.92,700.68,0.285437]
[1735597532024,0.26235998,701.91,700.68,0.285437]
[1735597532220,0.26235998,701.9,700.68,0.285437]
[1735597532526,1.48890806,702.06,700.68,0.285437]
[1735597532527,0.26235998,701.89,700.68,0.285437]
[1735597532726,0.26235998,701.88,700.68,0.285437]
[1735597532919,0.26235998,701.87,700.68,0.285437]
[1735597533122,0.26235998,701.86,700.68,0.285437]
[1735597533323,0.26235998,701.85,700.68,0.285437]
[1735597533522,0.26235998,701.84,700.68,0.285437]
[1735597533722,0.26235998,701.83,700.68,0.285437]
[1735597533919,0.26235998,701.82,700.68,0.285437]
[1735597534226,0.26235998,701.81,700.68,0.285437]
[1735597534422,0.26236668,702.05,700.68,0.285437]
[1735597534630,0.26236668,702.04,700.68,0.285437]
[1735597534829,0.26236668,702.03,700.68,0.285437]
[1735597535026,0.26236668,702.02,700.68,0.285437]
[1735597535225,0.26236668,702.01,700.68,0.285437]
[1735597535431,0.26236668,702.0,700.68,0.285437]
[1735597535734,0.54727102,701.99,700.68,0.285437]
[1735597536031,0.54727508,701.98,700.68,0.285437]
[1735597536230,0.26236668,701.97,700.68,0.285437]
[1735597537130,1.4891523,701.96,700.68,0.285437]
[1735597537431,0.26236668,701.95,700.68,0.285437]
[1735597540832,0.26236668,701.94,700.68,0.285437]
[1735597541033,0.26236668,701.93,700.68,0.285437]
[1735597541230,1.4891523,701.96,700.68,0.285437]
[1735597541231,0.26236668,701.92,700.68,0.285437]
[1735597541426,0.26236668,701.91,700.68,0.285437]
[1735597541626,0.26236668,701.9,700.68,0.285437]
[1735597541829,0.26236668,701.89,700.68,0.285437]
[1735597542029,0.26236668,701.88,700.68,0.285437]
[1735597542226,0.26235304,701.87,700.68,0.285437]
[1735597542426,0.26235304,701.86,700.68,0.285437]
[1735597542626,0.26235304,701.85,700.68,0.285437]
[1735597542829,1.4891523,701.96,700.68,0.285437]
[1735597543026,0.26235663,701.95,700.68,0.285437]
[1735597543331,0.26235663,701.94,700.68,0.285437]
[1735597543531,0.26235663,701.93,700.68,0.285437]
[1735597543732,0.26235663,701.92,700.68,0.285437]
[1735597543931,0.26235663,701.91,700.68,0.285437]
[1735597544130,1.4891523,701.96,700.68,0.285437]
[1735597544131,0.26235663,701.9,700.68,0.285437]
[1735597544327,0.26235663,701.89,700.68,0.285437]
[1735597544529,0.26235663,701.88,700.68,0.285437]
[1735597544734,1.4891523,701.96,700.68,0.285437]
[1735597545031,0.26234782,701.95,700.68,0.285437]
[1735597547327,1.4891523,701.96,700.68,0.285437]
[1735597553134,0.2849084,701.98,700.68,0.285437]
[1735597553736,1.0598692,702.19,700.68,0.285437]
[1735597554041,1.48833496,702.21,700.8,1.0664356]
[1735597554238,0.26218418,702.2,700.8,1.0664356]
[1735597554739,1.48833496,702.21,700.8,1.0664356]
[1735597555234,1.48833496,702.21,701.08,1.0664356]
[1735597555538,1.0598692,702.37,701.09,0.28527007]
[1735597555730,1.48790012,702.26,701.09,0.28527007]
[1735597555933,0.26216363,702.25,701.09,0.28527007]
[1735597556131,0.26216363,702.24,701.09,0.28527007]
[1735597556335,0.26216363,702.23,701.09,0.28527007]
[1735597556537,0.26216363,702.22,701.09,0.28527007]
[1735597556834,0.26216363,702.21,701.09,0.28527007]
[1735597557040,1.48787362,702.27,701.09,0.28527007]
[1735597566847,0.26216135,702.26,701.09,0.28527007]
[1735597570552,1.48787362,702.27,701.09,0.28527007]
[1735597574252,0.2621614,702.26,701.09,0.28527007]
[1735597575350,1.48787362,702.27,701.09,0.28527007]
[1735597577658,1.0598692,702.96,701.09,0.28527007]
[1735597577860,1.48793193,702.41,701.09,0.28527007]
[1735597578060,0.2845193,702.94,701.09,0.28527007]
[1735597578255,1.48785771,702.4,701.09,0.28527007]
[1735597578656,0.2845193,702.94,701.09,0.28527007]
[1735597578856,0.26210774,702.93,701.09,0.28527007]
[1735597579259,0.28453144,702.91,701.09,0.28527007]
[1735597579460,0.26210774,702.9,701.09,0.28527007]
[1735597579856,1.74966865,702.9,701.09,0.28527007]
[1735597580056,0.26210774,702.89,701.09,0.28527007]
[1735597580461,0.28454359,702.88,701.09,0.28527007]
[1735597580763,0.26210774,702.87,701.09,0.28527007]
[1735597581058,0.28455168,702.86,701.09,0.28527007]
[1735597581361,0.26210895,702.85,701.09,0.28527007]
[1735597581662,0.28455978,702.84,701.09,0.28527007]
[1735597581863,0.26210895,702.83,701.09,0.28527007]
[1735597582257,0.28456788,702.82,701.09,0.28527007]
[1735597582460,0.26210895,702.81,701.09,0.28527007]
[1735597582662,0.28457598,702.8,701.09,0.28527007]
[1735597582859,0.26210895,702.79,701.09,0.28527007]
[1735597583063,0.28458408,702.78,701.09,0.28527007]
[1735597583260,0.26210895,702.77,701.09,0.28527007]
[1735597583564,0.28459217,702.76,701.09,0.28527007]
[1735597583866,0.26210994,702.75,701.09,0.28527007]
[1735597584166,0.28460027,702.74,701.09,0.28527007]
[1735597584366,0.26210994,702.73,701.09,0.28527007]
[1735597584561,0.54671831,702.72,701.09,0.28527007]
[1735597584763,0.26210994,702.71,701.09,0.28527007]
[1735597584961,0.26210994,702.7,701.09,0.28527007]
[1735597585159,0.26210994,702.69,701.09,0.28527007]
[1735597585362,0.26210994,702.68,701.09,0.28527007]
[1735597585561,0.26210994,702.67,701.09,0.28527007]
[1735597585766,1.0598692,702.65,701.2,1.0664356]
[1735597585962,0.26210994,702.64,701.21,0.28522126]
[1735597586162,0.26210994,702.63,701.21,0.28522126]
[1735597586362,1.0598692,702.65,701.21,0.28522126]
[1735597586568,0.26211337,702.64,701.21,0.28522126]
[1735597586762,0.26211337,702.63,701.21,0.28522126]
[1735597586963,1.0598692,702.58,701.28,1.0664356]
[1735597587268,0.26211337,702.57,701.28,1.0664356]
[1735597588966,1.0598692,702.51,701.35,1.0664356]
[1735597589269,0.26213641,702.5,701.35,1.0664356]
[1735597589770,0.26219585,702.49,701.35,1.0664356]
[1735597590171,1.0598692,702.37,701.35,1.0664356]
[1735597590365,1.0598692,702.37,701.21,0.28522126]
[1735597591071,0.26221855,702.36,701.21,0.28522126]
[1735597591369,1.0598692,702.31,700.96,1.0664356]
[1735597591567,0.26221855,702.3,700.96,1.0664356]
[1735597591765,1.0598692,702.31,700.96,1.0664356]
[1735597591969,0.26229399,702.3,700.96,1.0664356]
[1735597592870,1.0598692,702.27,700.62,1.0664356]
[1735597593070,0.26229399,702.26,700.62,1.0664356]
[1735597593774,0.26229399,702.26,700.63,0.28545737]
[1735597593973,0.28479886,702.25,700.63,0.28545737]
[1735597594167,0.26229399,702.24,700.63,0.28545737]
[1735597594372,0.28480697,702.23,700.63,0.28545737]
[1735597594672,0.26229399,702.22,700.63,0.28545737]
[1735597595569,0.28481508,702.21,700.63,0.28545737]
[1735597595773,0.26229399,702.2,700.63,0.28545737]
[1735597596174,0.28482319,702.19,700.63,0.28545737]
[1735597596473,0.26229399,702.18,700.63,0.28545737]
[1735597596971,0.2848313,702.17,700.63,0.28545737]
[1735597597167,0.26229399,702.16,700.63,0.28545737]
[1735597597672,0.2848313,702.17,700.63,0.28545737]
[1735597597873,0.26230632,702.16,700.63,0.28545737]
[1735597599071,0.2848313,702.17,700.63,0.28545737]
[1735597599470,0.26229177,702.16,700.63,0.28545737]
[1735597599872,0.26229525,702.15,700.63,0.28545737]
[1735597600068,0.2848313,702.17,700.63,0.28545737]
[1735597600269,0.26229537,702.16,700.63,0.28545737]
[1735597600476,1.48866391,702.14,700.63,0.28545737]
[1735597601076,0.26229291,702.13,700.63,0.28545737]
[1735597601769,1.48866391,702.14,700.63,0.28545737]
[1735597601770,0.26229353,702.12,700.63,0.28545737]
[1735597601970,0.26229353,702.11,700.63,0.28545737]
[1735597602170,0.26229353,702.1,700.63,0.28545737]
[1735597602469,0.26229353,702.09,700.63,0.28545737]
[1735597602676,0.26229353,702.08,700.63,0.28545737]
[1735597602878,0.26229353,702.07,700.63,0.28545737]
[1735597603071,0.26229353,702.06,700.63,0.28545737]
[1735597603277,0.26229353,702.05,700.63,0.28545737]
[1735597603479,0.26229353,702.04,700.63,0.28545737]
[1735597603775,0.26229353,702.03,700.63,0.28545737]
[1735597603976,0.26229353,702.02,700.63,0.28545737]
[1735597604177,0.26229353,702.01,700.63,0.28545737]
[1735597604378,0.26229353,702.0,700.63,0.28545737]
[1735597604678,0.26229353,701.99,700.63,0.28545737]
[1735597604880,0.26229353,701.98,700.63,0.28545737]
[1735597605178,0.26229619,701.97,700.63,0.28545737]
[1735597605480,0.26229619,701.96,700.63,0.28545737]
[1735597605671,0.26228736,701.95,700.63,0.28545737]
[1735597605873,0.26228736,701.94,700.63,0.28545737]
[1735597606073,0.26228736,701.93,700.63,0.28545737]
[1735597606277,1.48866391,702.14,700.63,0.28545737]
[1735597606477,0.26228631,702.13,700.63,0.28545737]
[1735597607678,1.48866391,702.14,700.63,0.28545737]
[1735597607881,0.26228658,702.13,700.63,0.28545737]
[1735597610185,1.48866391,702.14,700.63,0.28545737]
[1735597610983,0.26220876,702.13,700.63,0.28545737]
[1735597611184,0.2848313,702.17,700.63,0.28545737]
[1735597611386,0.26219672,702.16,700.63,0.28545737]
[1735597612379,0.2848313,702.17,700.77,1.0664356]
[1735597612780,0.26218833,702.16,700.79,0.2853922]
[1735597612981,0.2848313,702.17,700.79,0.2853922]
[1735597613280,0.26219098,702.16,700.79,0.2853922]
[1735597613483,0.26219098,702.16,700.79,1.3518278]
[1735597613682,0.2848313,702.17,700.79,1.3518278]
[1735597613886,0.26219212,702.16,700.79,1.3518278]
[1735597614284,0.26219212,702.16,700.81,1.0664356]
[1735597614485,0.26219212,702.16,700.83,0.28537591]
[1735597615782,0.26218913,702.15,700.83,0.28537591]
[1735597615985,0.2848313,702.17,700.83,0.28537591]
[1735597616184,0.26218895,702.16,700.83,0.28537591]
[1735597616887,0.26218895,702.16,700.85,1.0664356]
[1735597617190,0.26218895,702.16,700.86,0.28536369]
[1735597618090,0.26218895,702.16,700.87,1.0664356]
[1735597618290,0.26218895,702.16,700.88,0.28535555]
[1735597618490,0.26218883,702.15,700.88,0.28535555]
[1735597618691,0.2848313,702.17,700.88,0.28535555]
[1735597618987,0.2848313,702.17,700.9,1.0664356]
[1735597618988,0.26218915,702.16,700.9,1.0664356]
[1735597619286,0.26218915,702.16,700.91,0.28534333]
[1735597619886,0.26218915,702.16,700.92,1.0664356]
[1735597620089,0.26218915,702.16,700.93,0.28533519]
[1735597620793,0.26218964,702.15,700.93,0.28533519]
[1735597620997,0.26218981,702.16,700.93,0.28533519]
[1735597621295,0.26218981,702.15,700.94,1.0664356]
[1735597621488,0.26219022,702.14,700.94,1.0664356]
[1735597622088,0.26219022,702.14,700.49,1.27972272]
[1735597622089,0.26219022,702.14,700.99,1.0664356]
[1735597622292,0.26219022,702.14,701.0,0.2853067]
[1735597622995,1.48813342,702.15,701.0,0.2853067]
[1735597623196,0.26219419,702.14,701.0,0.2853067]
[1735597623395,0.26219419,702.14,701.01,1.0664356]
[1735597623592,0.26219419,702.14,701.02,0.28529856]
[1735597624395,0.26219419,702.14,701.04,1.0664356]
[1735597625492,1.48813342,702.15,701.04,1.0664356]
[1735597625899,1.48813342,702.15,701.02,0.28529856]
[1735597625900,1.48813342,702.15,701.03,1.0664356]
[1735597626097,1.48813342,702.15,701.03,1.35173009]
[1735597626799,1.48813342,702.15,701.03,0.28529449]
[1735597632502,1.48813342,702.15,701.03,1.35173009]
[1735597633696,1.48813342,702.15,701.04,1.0664356]
[1735597634801,1.48813342,702.15,701.03,0.28529449]
[1735597636101,1.48813342,702.15,701.03,1.35173009]
[1735597636997,1.48813342,702.15,701.05,1.0664356]
[1735597637799,1.48813342,702.15,701.06,1.0664356]
[1735597639005,1.48813342,702.15,701.07,1.0664356]
[1735597640404,1.48813342,702.15,701.1,1.0664356]
[1735597642706,1.48813342,702.15,701.11,1.0664356]
[1735597643407,1.48813342,702.15,701.15,1.0664356]
[1735597643603,0.26219472,702.14,701.15,1.0664356]
[1735597644410,1.48813342,702.15,701.24,1.0664356]
[1735597645608,2.54800262,702.15,701.28,1.0664356]
[1735597646611,1.0598692,702.11,701.32,1.0664356]
[1735597648214,1.0598692,702.13,701.33,1.0664356]
[1735597649313,1.0598692,702.13,701.32,1.0664356]
[1735597650117,1.48813342,702.15,701.33,1.0664356]
[1735597650118,1.0598692,702.12,701.33,1.0664356]
[1735597650818,1.0598692,702.12,701.13,1.0664356]
[1735597650819,1.0598692,702.11,701.32,1.0664356]
[1735597651718,1.0598692,702.12,701.32,1.0664356]
[1735597652818,1.0598692,702.12,701.31,1.0664356]
[1735597653615,1.0598692,702.13,701.31,1.0664356]
[1735597656018,1.0598692,702.1,701.34,1.0664356]
[1735597657922,1.0598692,702.1,701.36,1.0664356]
[1735597659223,1.0598692,702.11,701.37,1.0664356]
[1735597660317,1.48783121,702.27,701.37,1.0664356]
[1735597661622,1.0598692,702.34,701.37,1.0664356]
[1735597662924,1.48760861,702.43,701.35,1.0664356]
[1735597663317,1.0598692,702.5,701.35,1.0664356]
[1735597664126,1.0598692,702.5,700.74,1.27972272]
[1735597664127,1.48740196,702.53,701.32,1.0664356]
[1735597665125,1.48740196,702.53,701.36,1.0664356]
[1735597665920,1.48740196,702.53,700.96,1.0664356]
[1735597665921,1.48740196,702.53,701.34,1.0664356]
[1735597666619,1.0598692,702.82,701.34,1.0664356]
[1735597666819,1.48717949,702.65,701.34,1.0664356]
[1735597667023,1.0598692,702.91,701.35,1.0664356]
[1735597667226,0.26200028,702.9,701.35,1.0664356]
[1735597668224,1.0598692,702.91,701.35,1.0664356]
[1735597668427,0.26200195,702.9,701.4,1.0664356]
[1735597668626,0.26200195,702.89,701.4,1.0664356]
[1735597668823,0.26200195,702.88,701.4,1.0664356]
[1735597669020,0.2620017,702.87,701.4,1.0664356]
[1735597669221,0.2620017,702.86,701.4,1.0664356]
[1735597669422,0.2620017,702.85,701.4,1.0664356]
[1735597669632,0.2620017,702.84,701.34,1.0664356]
[1735597669825,0.2620017,702.83,701.34,1.0664356]
[1735597670023,1.48697296,702.9,701.34,1.0664356]
[1735597670222,0.26199723,702.89,701.34,1.0664356]
[1735597670627,0.26199723,702.89,701.3,1.0664356]
[1735597671627,0.26199723,702.89,701.26,1.0664356]
[1735597672527,0.26199723,702.89,701.23,1.0664356]
[1735597672726,0.26199723,702.89,701.25,0.28520499]
[1735597673522,1.48697296,702.9,701.25,0.28520499]
[1735597673723,0.26200053,702.89,701.25,0.28520499]
[1735597676232,0.2620027,702.88,701.25,0.28520499]
[1735597676528,0.2620027,702.87,701.25,0.28520499]
[1735597676828,0.2620027,702.86,701.25,0.28520499]
[1735597677032,0.2620027,702.85,701.25,0.28520499]
[1735597677331,1.48697296,702.9,701.25,0.28520499]
[1735597677332,0.2620027,702.84,701.25,0.28520499]
[1735597677531,0.2620027,702.83,701.25,0.28520499]
[1735597677732,0.2620027,702.82,701.25,0.28520499]
[1735597677930,0.2620027,702.81,701.25,0.28520499]
[1735597678131,0.2620027,702.8,701.25,0.28520499]
[1735597678326,0.2620027,702.79,701.25,0.28520499]
[1735597678532,0.2620027,702.78,701.25,0.28520499]
[1735597678728,0.2620027,702.77,701.25,0.28520499]
[1735597678934,0.26200257,702.76,701.25,0.28520499]
[1735597679135,0.26200257,702.82,701.25,0.28520499]
[1735597679337,0.26200257,702.81,701.25,0.28520499]
[1735597679537,1.48711594,702.83,701.25,0.28520499]
[1735597679538,0.26200257,702.8,701.25,0.28520499]
[1735597679735,0.26200257,702.79,701.25,0.28520499]
[1735597679930,0.26200257,702.78,701.25,0.28520499]
[1735597680134,0.26200257,702.77,701.25,0.28520499]
[1735597680335,0.26200257,702.76,701.25,0.28520499]
[1735597680535,0.26200257,702.75,701.25,0.28520499]
[1735597680731,1.48711594,702.83,701.25,0.28520499]
[1735597680732,0.26200257,702.74,701.25,0.28520499]
[1735597680936,1.48711594,702.83,701.25,0.28520499]
[1735597681136,0.26201017,702.82,701.25,0.28520499]
[1735597682234,0.26201017,702.81,701.25,0.28520499]
[1735597682437,0.26201017,702.8,701.25,0.28520499]
[1735597683340,0.26202333,702.79,701.25,0.28520499]
[1735597683637,1.48717949,702.81,701.25,0.28520499]
[1735597683638,0.26202333,702.78,701.25,0.28520499]
[1735597683833,0.26202333,702.77,701.25,0.28520499]
[1735597684033,0.26202109,702.76,701.25,0.28520499]
[1735597684238,0.26202109,702.8,701.25,0.28520499]
[1735597684441,1.48717949,702.81,701.25,0.28520499]
[1735597684442,0.26202109,702.79,701.25,0.28520499]
[1735597684634,0.26202109,702.78,701.25,0.28520499]
[1735597684837,0.26202109,702.77,701.25,0.28520499]
[1735597685137,0.26202109,702.76,701.25,0.28520499]
[1735597685338,0.26202109,702.75,701.25,0.28520499]
[1735597685638,0.26202109,702.74,701.25,0.28520499]
[1735597685831,1.48717949,702.81,701.25,0.28520499]
[1735597686232,0.26202116,702.8,701.25,0.28520499]
[1735597686438,1.48717949,702.81,701.25,0.28520499]
[1735597686638,0.26201787,702.8,701.25,0.28520499]
[1735597688739,1.48717949,702.81,701.25,0.28520499]
[1735597688939,0.26202282,702.8,701.25,0.28520499]
[1735597690935,0.26202282,702.8,701.26,1.0664356]
[1735597691739,0.26202282,702.8,701.28,0.28519279]
[1735597692035,1.48717949,702.81,701.28,0.28519279]
[1735597692239,0.26201632,702.8,701.28,0.28519279]
[1735597692441,0.26201632,702.8,701.31,1.0664356]
[1735597693743,0.26201632,702.8,701.45,1.0664356]
[1735597694242,0.26201271,702.79,701.45,1.0664356]
[1735597694443,0.26201271,702.8,701.45,1.0664356]
[1735597694636,0.26201271,702.79,701.45,1.0664356]
[1735597694943,0.26201271,702.78,701.55,1.0664356]
[1735597695142,0.26201271,702.77,701.55,1.0664356]
[1735597695338,0.26201271,702.76,701.55,1.0664356]
[1735597695548,0.26201271,702.75,701.55,1.0664356]
[1735597695744,0.26201271,702.74,701.55,1.0664356]
[1735597695938,0.26201271,702.73,701.55,1.0664356]
[1735597696139,0.26201271,702.72,701.61,1.0664356]
[1735597696343,0.26201271,702.71,701.61,1.0664356]
[1735597696840,1.48692002,702.72,701.61,1.0664356]
[1735597697244,1.48692002,702.72,701.57,1.0664356]
[1735597698546,1.48692002,702.72,701.61,1.0664356]
[1735597699945,1.48692002,702.72,701.69,1.0664356]
[1735597701952,1.48692002,702.72,701.72,1.0664356]
[1735597703149,1.48692002,702.72,701.73,1.0664356]
[1735597704250,2.54678922,702.72,701.72,1.0664356]
[1735597705750,0.26201152,702.71,701.72,1.0664356]
[1735597706651,0.26201152,702.71,701.48,1.0664356]
[1735597706652,1.0598692,702.66,701.77,1.0664356]
[1735597707047,0.26200498,702.65,701.77,1.0664356]
[1735597707250,1.0598692,702.66,701.77,1.0664356]
[1735597707452,0.26200429,702.65,701.77,1.0664356]
[1735597707649,1.74888725,702.65,701.77,1.0664356]
[1735597707853,1.74888725,702.65,701.56,1.0664356]
[1735597707854,1.0598692,702.62,701.83,1.0664356]
[1735597710054,0.26200826,702.61,701.83,1.0664356]
[1735597710354,1.0598692,702.62,701.83,1.0664356]
[1735597710555,1.0598692,702.62,701.84,1.0664356]
[1735597711851,1.0598692,702.62,701.74,1.0664356]
[1735597715354,1.48688296,702.65,701.33,0.28517245]
[1735597715355,1.48688296,702.65,701.6,1.0664356]
[1735597717254,1.48688296,702.65,701.33,0.28517245]
[1735597717255,1.48688296,702.65,701.59,1.0664356]
[1735597718962,1.48688296,702.65,701.58,1.0664356]
[1735597719563,1.48688296,702.65,701.59,1.0664356]
[1735597720866,1.48688296,702.65,701.6,1.0664356]
[1735597724066,0.26202338,702.64,701.6,1.0664356]
[1735597725167,1.0598692,702.6,701.76,1.0664356]
[1735597726668,1.0598692,702.6,701.75,1.0664356]
[1735597727669,1.0598692,702.61,701.74,1.0664356]
[1735597728768,0.26202322,702.6,701.74,1.0664356]
[1735597730067,1.0598692,702.58,701.78,1.0664356]
[1735597730668,1.48701532,702.57,701.78,1.0664356]
[1735597731068,1.48701532,702.57,701.76,1.0664356]
[1735597732974,1.48701532,702.57,701.75,1.0664356]
[1735597735070,1.48701532,702.57,701.76,1.0664356]
[1735597736072,1.48701532,702.57,701.58,1.0664356]
[1735597738182,1.48701532,702.57,701.57,1.0664356]
[1735597740680,1.48701532,702.57,701.54,1.0664356]
[1735597742079,1.48701532,702.57,701.51,1.0664356]
[1735597743187,1.48701532,702.57,701.5,1.0664356]
[1735597744284,1.48701532,702.57,701.52,1.0664356]
[1735597745183,0.26206978,702.56,701.52,1.0664356]
[1735597745788,1.48701532,702.57,701.51,1.0664356]
[1735597746787,1.48701532,702.57,701.44,1.0664356]
[1735597747781,1.48701532,702.57,701.43,1.0664356]
[1735597750387,1.48701532,702.57,701.44,1.0664356]
[1735597751789,1.48701532,702.57,701.43,1.0664356]
[1735597752789,1.48701532,702.57,701.41,1.0664356]
[1735597753892,1.48701532,702.57,701.18,0.28523346]
[1735597753893,1.48701532,702.57,701.31,1.0664356]
[1735597754190,1.48701532,702.57,701.32,0.28517652]
[1735597757093,1.48701532,702.57,701.32,1.35161212]
[1735597760594,1.48701532,702.57,701.32,0.28517652]
[1735597768603,1.48701532,702.57,701.32,1.35161212]
[1735597769502,0.26212037,702.56,701.32,1.35161212]
[1735597769697,1.48701532,702.57,701.32,0.28517652]
[1735597769903,0.26212076,702.56,701.32,0.28517652]
[1735597770505,0.2621308,702.55,701.32,0.28517652]
[1735597770699,0.2621308,702.54,701.32,0.28517652]
[1735597770900,0.2621308,702.53,701.32,0.28517652]
[1735597771097,1.48701532,702.57,701.32,0.28517652]
[1735597771303,0.26213109,702.56,701.32,0.28517652]
[1735597772305,1.0598692,702.55,701.32,0.28517652]
[1735597772502,0.26213109,702.54,701.32,0.28517652]
[1735597773402,1.0598692,702.52,701.32,0.28517652]
[1735597773597,0.26213109,702.51,701.32,0.28517652]
[1735597774498,1.0598692,702.52,701.32,0.28517652]
[1735597774700,0.26212621,702.51,701.32,0.28517652]
[1735597774903,1.0598692,702.52,701.32,0.28517652]
[1735597775404,0.26212824,702.51,701.32,0.28517652]
[1735597775797,1.0598692,702.55,701.32,0.28517652]
[1735597776001,0.26212822,702.54,701.32,0.28517652]
[1735597777597,1.0598692,702.55,701.32,0.28517652]
[1735597777802,1.32202642,702.54,701.32,0.28517652]
[1735597778006,0.26215722,702.53,701.32,0.28517652]
[1735597779305,0.2621643,702.52,701.32,0.28517652]
[1735597779605,1.0598692,702.56,701.32,0.28517652]
[1735597779606,0.2621643,702.51,701.32,0.28517652]
[1735597779804,0.2621643,702.5,701.32,0.28517652]
[1735597780004,0.2621643,702.49,701.32,0.28517652]
[1735597780204,0.2621643,702.48,701.32,0.28517652]
[1735597780408,0.2621643,702.47,701.32,0.28517652]
[1735597781208,1.4877623,702.48,701.32,0.28517652]
[1735597781403,0.26216699,702.47,701.32,0.28517652]
[1735597782408,1.4877623,702.48,701.32,0.28517652]
[1735597782608,0.26216863,702.47,701.32,0.28517652]
[1735597786509,1.4877623,702.48,701.32,0.28517652]
[1735597786808,0.26216964,702.47,701.32,0.28517652]
[1735597787008,1.4877623,702.48,701.32,0.28517652]
[1735597787410,0.2621671,702.47,701.32,0.28517652]
[1735597788505,1.0598692,702.46,701.32,0.28517652]
[1735597788707,0.2621671,702.45,701.32,0.28517652]
[1735597789308,1.0598692,702.46,701.32,0.28517652]
[1735597789607,0.26216967,702.45,701.32,0.28517652]
[1735597790813,1.32203887,702.45,701.32,0.28517652]
[1735597791011,0.26216967,702.44,701.32,0.28517652]
[1735597792103,0.26216861,702.43,701.32,0.28517652]
[1735597792309,0.26216861,702.42,701.32,0.28517652]
[1735597792608,0.26216861,702.41,701.32,0.28517652]
[1735597792804,0.26216861,702.4,701.32,0.28517652]
[1735597793110,0.26216861,702.39,701.32,0.28517652]
[1735597793307,0.26216861,702.38,701.32,0.28517652]
[1735597794715,0.2621696,702.37,701.32,0.28517652]
[1735597794911,0.2621696,702.36,701.32,0.28517652]
[1735597795112,0.2621696,702.35,701.32,0.28517652]
[1735597795312,0.2621696,702.34,701.32,0.28517652]
[1735597795516,0.2621696,702.33,701.32,0.28517652]
[1735597795711,1.4877729,702.39,701.32,0.28517652]
[1735597795712,0.2621696,702.32,701.32,0.28517652]
[1735597795913,0.2621696,702.31,701.32,0.28517652]
[1735597796113,0.2621696,702.3,701.32,0.28517652]
[1735597796315,0.2621696,702.29,701.32,0.28517652]
[1735597796612,0.2621696,702.28,701.32,0.28517652]
[1735597796815,0.2621696,702.27,701.32,0.28517652]
[1735597797015,0.2621696,702.26,701.32,0.28517652]
[1735597797216,0.2621696,702.25,701.32,0.28517652]
[1735597797414,0.26217172,702.24,701.32,0.28517652]
[1735597797612,0.26217172,702.23,701.32,0.28517652]
[1735597797819,0.26217172,702.22,701.32,0.28517652]
[1735597798011,1.4877729,702.39,701.32,0.28517652]
[1735597798012,1.0598692,702.35,701.32,0.28517652]
[1735597798317,0.26216904,702.34,701.32,0.28517652]
[1735597800119,0.26217011,702.33,701.32,0.28517652]
[1735597800320,0.26217011,702.32,701.32,0.28517652]
[1735597800517,0.26217011,702.31,701.32,0.28517652]
[1735597800719,0.26217011,702.3,701.32,0.28517652]
[1735597800917,0.26217011,702.29,701.32,0.28517652]
[1735597801120,0.26217011,702.28,701.32,0.28517652]
[1735597801317,1.0598692,702.33,701.32,0.28517652]
[1735597801623,0.26214019,702.32,701.32,0.28517652]
[1735597801823,1.4877729,702.39,701.35,1.0664356]
[1735597802022,0.2621402,702.38,701.35,1.0664356]
[1735597802524,1.4877729,702.39,701.35,1.0664356]
[1735597802725,0.26212996,702.38,701.35,1.0664356]
[1735597802924,1.4877729,702.39,701.35,1.0664356]
[1735597803227,1.4877729,702.39,701.37,1.0664356]
[1735597803418,1.0598692,702.42,701.37,1.0664356]
[1735597804219,1.48735958,702.55,701.37,1.0664356]
[1735597804429,0.26206447,702.54,701.44,1.0664356]
[1735597804618,0.26206418,702.53,701.44,1.0664356]
[1735597804819,1.48735958,702.55,701.44,1.0664356]